bitfinex/quotes_BTCUSD_20211001
["timestamp","ask_amount","ask_price","bid_price","bid_amount"]
[1633048053143,0.50876858,43887.0,43879.0,0.41725754]
[1633048053341,0.44176258,43887.0,43879.0,0.41725754]
[1633048053540,0.002,43880.0,43879.0,0.41725754]
[1633048053754,0.002,43880.0,43879.0,0.64695354]
[1633048054145,0.002,43880.0,43879.0,0.229696]
[1633048054940,0.002,43880.0,43879.0,0.24626531]
[1633048055141,0.002,43880.0,43879.0,0.43447186]
[1633048055746,0.05,43880.0,43879.0,0.45747186]
[1633048056343,0.05,43880.0,43879.0,0.22777586]
[1633048056744,0.05,43880.0,43879.0,0.023]
[1633048056945,0.01203384,43880.0,43875.0,2.8780471]
[1633048057145,0.01203384,43880.0,43876.0,0.229696]
[1633048057345,0.01203384,43880.0,43875.0,2.8780471]
[1633048057544,0.01203384,43880.0,43876.0,0.229696]
[1633048057749,0.03803384,43880.0,43876.0,0.28861547]
[1633048058147,0.03803384,43880.0,43877.0,0.229696]
[1633048058949,0.01203384,43880.0,43877.0,0.229696]
[1633048059750,0.05703384,43880.0,43877.0,0.266696]
[1633048060348,0.047,43880.0,43878.0,0.01657297]
[1633048061150,0.002,43880.0,43878.0,0.01657297]
[1633048061753,0.046,43880.0,43878.0,0.04557297]
[1633048062351,0.01003236,43879.0,43878.0,0.029]
[1633048062656,0.53288137,43879.0,43878.0,0.029]
[1633048062852,0.60284349,43879.0,43875.0,0.12671731]
[1633048063051,0.06828726,43876.0,43875.0,0.12671731]
[1633048063253,0.28248417,43876.0,43875.0,0.12671731]
[1633048063455,0.38248417,43876.0,43875.0,0.12671731]
[1633048063653,0.9134816,43876.0,43875.0,0.12671731]
[1633048064056,1.2555656,43876.0,43875.0,0.12671731]
[1633048064855,1.1975656,43876.0,43875.0,0.12671731]
[1633048065660,0.60343462,43875.0,43874.0,0.19731948]
[1633048065858,0.66757811,43875.0,43874.0,0.19731948]
[1633048066058,0.76810798,43875.0,43874.0,0.19731948]
[1633048066458,0.1428678,43874.0,43854.0,0.09450605]
[1633048066657,0.1428678,43874.0,43850.0,0.00122883]
[1633048066658,0.342172,43857.0,43850.0,0.00122883]
[1633048066859,0.23785737,43856.0,43847.0,0.95318886]
[1633048067055,0.24135144,43856.0,43847.0,0.95318886]
[1633048067456,0.24135144,43856.0,43844.0,0.34352403]
[1633048067657,0.24135144,43856.0,43854.0,0.18107278]
[1633048067658,0.27635144,43856.0,43854.0,0.18107278]
[1633048067858,0.26770855,43855.0,43854.0,0.18107278]
[1633048068056,0.20419662,43855.0,43854.0,0.18107278]
[1633048069255,0.20419662,43855.0,43850.0,0.11408816]
[1633048069457,0.0134409,43855.0,43850.0,0.11408816]
[1633048069657,0.0574409,43855.0,43850.0,0.11408816]
[1633048069857,0.19078469,43854.0,43850.0,0.11408816]
[1633048070257,0.19078469,43854.0,43853.0,0.22967749]
[1633048070759,0.18195502,43854.0,43853.0,0.22967749]
[1633048070955,0.0134409,43855.0,43853.0,0.22967749]
[1633048071358,0.00349407,43855.0,43854.0,0.01666088]
[1633048071556,0.24959458,43855.0,43854.0,0.01666088]
[1633048071759,0.29359458,43855.0,43854.0,0.01666088]
[1633048072959,0.24959458,43855.0,43854.0,0.01666088]
[1633048073360,0.25955369,43855.0,43853.0,0.22967749]
[1633048073561,0.19254769,43855.0,43853.0,0.22967749]
[1633048073763,0.002,43854.0,43853.0,0.22967749]
[1633048073960,0.00549407,43854.0,43853.0,0.22967749]
[1633048074162,0.18655365,43854.0,43853.0,0.22967749]
[1633048075363,0.18655365,43854.0,43853.0,0.45287749]
[1633048075567,0.00549407,43854.0,43853.0,0.45287749]
[1633048075767,0.05595911,43855.0,43853.0,0.68386475]
[1633048075965,5.911e-05,43855.0,43854.0,0.229696]
[1633048076369,5.911e-05,43855.0,43854.0,0.30832603]
[1633048076370,0.0035781,43855.0,43854.0,0.30832603]
[1633048076765,0.0035781,43855.0,43854.0,0.30332603]
[1633048076965,0.00351899,43855.0,43854.0,0.30332603]
[1633048077166,0.00351899,43855.0,43854.0,0.32496647]
[1633048077668,0.00351899,43855.0,43854.0,0.38696647]
[1633048078267,0.00351899,43855.0,43854.0,0.32496647]
[1633048078873,0.00849707,43855.0,43854.0,0.30332603]
[1633048079670,0.00849707,43855.0,43854.0,0.36532603]
[1633048080469,0.00849707,43855.0,43854.0,0.286696]
[1633048081068,0.00849707,43855.0,43854.0,0.224696]
[1633048081473,0.09050901,43855.0,43846.0,0.9515]
[1633048081673,0.13550901,43855.0,43854.0,0.049]
[1633048081873,0.39912044,43855.0,43854.0,0.049]
[1633048082072,0.2451025,43855.0,43854.0,0.049]
[1633048082532,0.04851899,43855.0,43854.0,0.049]
[1633048082671,0.04851899,43855.0,43854.0,0.07064044]
[1633048083072,0.00351899,43855.0,43854.0,0.02164044]
[1633048083671,0.00351899,43855.0,43854.0,0.06464044]
[1633048083872,0.04651899,43855.0,43854.0,0.06464044]
[1633048084271,0.05149712,43855.0,43854.0,0.043]
[1633048085174,0.05149712,43855.0,43854.0,0.272694]
[1633048085772,0.00849712,43855.0,43854.0,0.304694]
[1633048087773,0.00849712,43855.0,43854.0,0.289694]
[1633048088172,0.00351899,43855.0,43854.0,0.30889931]
[1633048088971,0.00351899,43855.0,43854.0,0.24889931]
[1633048089376,0.34567499,43855.0,43854.0,0.24889931]
[1633048089571,0.34567499,43855.0,43854.0,0.01920531]
[1633048089770,0.36603361,43855.0,43854.0,0.054]
[1633048090175,0.02387761,43855.0,43854.0,0.054]
[1633048090575,0.02387761,43855.0,43854.0,0.283694]
[1633048090778,0.02387761,43855.0,43854.0,0.74071281]
[1633048090976,0.02387761,43855.0,43854.0,0.65814659]
[1633048091175,0.02387761,43855.0,43854.0,0.69670949]
[1633048091176,0.00887761,43855.0,43854.0,0.69670949]
[1633048091380,0.342058,43867.0,43864.0,0.11587521]
[1633048091577,0.002,43865.0,43864.0,0.11587521]
[1633048092374,0.002,43865.0,43858.0,0.20958253]
[1633048092575,0.08737141,43863.0,43858.0,0.20958253]
[1633048092777,0.228094,43862.0,43858.0,0.20958253]
[1633048092975,0.002,43865.0,43858.0,0.20958253]
[1633048093575,0.002,43865.0,43859.0,0.12707857]
[1633048093775,0.456162,43863.0,43859.0,0.12707857]
[1633048094778,0.034,43865.0,43859.0,0.12707857]
[1633048094976,0.37607,43865.0,43859.0,0.12707857]
[1633048095180,0.34407,43865.0,43859.0,0.12707857]
[1633048095378,0.00406293,43864.0,43859.0,0.10439353]
[1633048095777,0.08607494,43864.0,43859.0,0.14739353]
[1633048095980,0.570204,43862.0,43859.0,0.043]
[1633048096182,0.228089,43862.0,43859.0,0.043]
[1633048096582,0.328089,43862.0,43859.0,0.043]
[1633048097179,0.34212,43859.0,43856.0,0.22919012]
[1633048097380,0.328089,43862.0,43857.0,0.229694]
[1633048097577,0.1,43862.0,43857.0,0.229694]
[1633048098183,0.1,43862.0,43861.0,2.17728568]
[1633048099181,0.1,43862.0,43861.0,2.19997072]
[1633048099785,0.14,43862.0,43861.0,2.22297072]
[1633048099982,0.04,43862.0,43861.0,2.22297072]
[1633048100382,0.382095,43862.0,43861.0,2.22297072]
[1633048100851,0.38615798,43862.0,43861.0,2.20028568]
[1633048101241,0.34615798,43862.0,43861.0,2.17728568]
[1633048101450,0.00406298,43862.0,43861.0,2.17728568]
[1633048101642,0.00406298,43862.0,43861.0,2.40697968]
[1633048101843,0.05806298,43862.0,43861.0,2.43097968]
[1633048103242,0.00606298,43862.0,43861.0,2.40697968]
[1633048103854,0.05006298,43862.0,43861.0,2.43197968]
[1633048104253,0.05006298,43862.0,43861.0,2.43320042]
[1633048104648,0.046,43862.0,43861.0,2.45588546]
[1633048104848,0.046,43862.0,43861.0,2.54864446]
[1633048105052,0.046,43862.0,43861.0,2.52364446]
[1633048105053,0.002,43862.0,43861.0,2.52364446]
[1633048105449,0.21669986,43870.0,43861.0,2.52364446]
[1633048105651,0.456088,43870.0,43868.0,0.11638244]
[1633048105851,0.072006,43869.0,43863.0,0.18926959]
[1633048106053,0.002,43863.0,43862.0,0.18016606]
[1633048106252,0.002,43863.0,43862.0,0.40986006]
[1633048107050,0.002,43863.0,43862.0,0.51928826]
[1633048107853,0.031,43863.0,43862.0,0.56528826]
[1633048108257,0.031,43863.0,43862.0,0.275694]
[1633048108453,0.031,43863.0,43862.0,0.046]
[1633048109256,0.002,43863.0,43857.0,0.3218878]
[1633048109454,0.002,43863.0,43861.0,0.12239859]
[1633048110053,0.002,43863.0,43862.0,0.02268324]
[1633048111857,0.02806288,43863.0,43862.0,0.268694]
[1633048112861,0.37015288,43863.0,43862.0,0.268694]
[1633048113056,0.37015288,43863.0,43862.0,0.039]
[1633048113255,0.34815288,43863.0,43861.0,0.12239859]
[1633048113856,0.37815288,43863.0,43861.0,0.17039859]
[1633048114057,0.03606288,43863.0,43861.0,0.17039859]
[1633048114256,0.03606288,43863.0,43862.0,0.229694]
[1633048115057,0.00606288,43863.0,43862.0,0.229694]
[1633048115657,0.002,43863.0,43862.0,0.25237543]
[1633048115858,0.018,43863.0,43862.0,0.29937543]
[1633048117060,0.018,43863.0,43862.0,0.06968143]
[1633048117259,0.002,43863.0,43861.0,0.12239859]
[1633048117461,0.002,43862.0,43861.0,0.12239859]
[1633048117862,0.002,43862.0,43861.0,0.16839859]
[1633048118462,0.344097,43862.0,43861.0,0.16839859]
[1633048119064,0.002,43862.0,43861.0,0.16839859]
[1633048119264,0.002,43862.0,43861.0,0.35209259]
[1633048119466,0.002,43862.0,43861.0,0.58777014]
[1633048119864,0.026,43862.0,43861.0,0.63677014]
[1633048120065,0.02518685,43862.0,43861.0,0.40109259]
[1633048120464,0.02518685,43862.0,43861.0,0.17139859]
[1633048120670,0.02518685,43862.0,43861.0,0.049]
[1633048121267,0.02518685,43862.0,43861.0,0.07168504]
[1633048121868,0.04618685,43862.0,43861.0,0.06068504]
[1633048122069,0.04618685,43862.0,43861.0,0.29037904]
[1633048122268,0.04618685,43862.0,43861.0,0.22439776]
[1633048122869,0.06105574,43862.0,43861.0,0.22439776]
[1633048123273,0.05933326,43862.0,43861.0,0.22439776]
[1633048123471,0.01686889,43862.0,43861.0,0.22439776]
[1633048123871,0.06286889,43862.0,43861.0,0.25139776]
[1633048125777,0.01686889,43862.0,43861.0,0.22439776]
[1633048125974,0.06286889,43862.0,43861.0,0.25139776]
[1633048126575,0.048,43862.0,43861.0,0.26274028]
[1633048127178,0.002,43862.0,43861.0,0.23574028]
[1633048127980,0.049,43862.0,43861.0,0.26374028]
[1633048128383,0.06386893,43862.0,43861.0,0.25239776]
[1633048129182,0.01686893,43862.0,43861.0,0.22439776]
[1633048129983,0.06386893,43862.0,43861.0,0.25139776]
[1633048131488,0.06594598,43872.0,43863.0,0.05793718]
[1633048131687,0.1428678,43874.0,43872.0,0.1075645]
[1633048131890,0.1428678,43874.0,43873.0,0.18974862]
[1633048132091,0.1428678,43874.0,43873.0,0.5410079]
[1633048132291,0.1448678,43874.0,43873.0,1.05529153]
[1633048132488,0.1448678,43874.0,43873.0,1.27447436]
[1633048132692,0.06593003,43885.0,43874.0,1.279633]
[1633048132991,0.06592513,43888.0,43885.0,0.10117859]
[1633048133189,0.0006,43891.0,43886.0,0.22166874]
[1633048133387,0.0006,43891.0,43887.0,0.23016662]
[1633048133591,0.0006,43891.0,43888.0,0.64806368]
[1633048133990,0.32851411,43889.0,43888.0,0.64806368]
[1633048134588,0.32851411,43889.0,43888.0,0.83491711]
[1633048135188,0.32851411,43889.0,43888.0,0.64677095]
[1633048135391,0.29051411,43889.0,43888.0,0.64677095]
[1633048135589,0.29051411,43889.0,43888.0,0.44267386]
[1633048135988,0.32151411,43889.0,43888.0,0.66681094]
[1633048136195,0.32151411,43889.0,43888.0,0.75565855]
[1633048136391,0.32151411,43889.0,43888.0,0.80565855]
[1633048137194,0.29051411,43889.0,43888.0,0.81270929]
[1633048137395,0.0006,43891.0,43889.0,0.77535626]
[1633048137593,0.0026,43890.0,43889.0,0.35623918]
[1633048137795,0.0026,43890.0,43889.0,0.45623918]
[1633048137996,0.0316,43890.0,43889.0,0.40723918]
[1633048138194,0.0316,43890.0,43889.0,0.40598926]
[1633048139793,0.0316,43890.0,43889.0,0.35498926]
[1633048139993,0.0486,43890.0,43889.0,0.39898926]
[1633048140393,0.0436,43890.0,43889.0,0.39898926]
[1633048140595,0.0456,43890.0,43889.0,0.39898926]
[1633048140797,0.0456,43890.0,43889.0,0.16935626]
[1633048140996,0.04683848,43890.0,43889.0,0.06849085]
[1633048141196,0.04683848,43890.0,43889.0,0.0164674]
[1633048141398,0.12468035,43890.0,43889.0,0.0164674]
[1633048141996,0.23108035,43890.0,43889.0,0.026]
[1633048142393,0.23108035,43890.0,43886.0,0.00044]
[1633048142594,0.341911,43888.0,43886.0,0.00044]
[1633048142794,0.07867631,43887.0,43886.0,0.00044]
[1633048142995,0.17867631,43887.0,43886.0,0.00044]
[1633048143195,0.17920618,43887.0,43886.0,0.00044]
[1633048143598,0.25651818,43887.0,43886.0,0.00044]
[1633048144003,0.31051818,43887.0,43886.0,0.01644]
[1633048144197,0.31174758,43887.0,43886.0,0.01644]
[1633048144798,0.32142222,43887.0,43886.0,0.01644]
[1633048145397,0.18821604,43887.0,43886.0,0.00044]
[1633048145857,0.08821604,43887.0,43886.0,0.00044]
[1633048146058,0.06790404,43887.0,43886.0,0.00444]
[1633048146856,0.06667464,43887.0,43886.0,0.00444]
[1633048147456,0.00967464,43887.0,43886.0,0.00044]
[1633048147656,0.08903438,43887.0,43886.0,0.00044]
[1633048148059,0.14603438,43887.0,43886.0,0.00644]
[1633048148656,0.13596435,43887.0,43886.0,0.02269348]
[1633048149259,0.13596435,43887.0,43886.0,0.01669348]
[1633048149459,0.00165235,43887.0,43886.0,0.01669348]
[1633048150061,0.05865235,43887.0,43886.0,0.01669348]
[1633048150263,0.05865235,43887.0,43886.0,0.00044]
[1633048150462,0.06819256,43887.0,43886.0,0.00044]
[1633048150660,0.07019256,43887.0,43886.0,0.00044]
[1633048151061,0.07144334,43887.0,43886.0,0.00044]
[1633048151261,0.1077916,43887.0,43886.0,0.00044]
[1633048151466,0.01444334,43887.0,43886.0,0.00044]
[1633048151664,0.01319256,43887.0,43886.0,0.00044]
[1633048152063,0.06719256,43887.0,43886.0,0.00044]
[1633048152662,0.06219256,43887.0,43886.0,0.00044]
[1633048152861,0.40410756,43887.0,43886.0,0.00044]
[1633048153666,0.35010756,43887.0,43886.0,0.00044]
[1633048154063,0.06,43887.0,43886.0,0.0183673]
[1633048155266,0.0006,43891.0,43888.0,0.227853]
[1633048155466,0.0006,43891.0,43890.0,0.00129685]
[1633048155664,0.0006,43891.0,43890.0,0.42735738]
[1633048155864,0.01047828,43891.0,43890.0,0.47735738]
[1633048156064,0.05947828,43891.0,43890.0,0.62635738]
[1633048156462,0.05947828,43891.0,43890.0,0.84955738]
[1633048156864,0.05947828,43891.0,43890.0,0.62635738]
[1633048157665,0.05947828,43891.0,43890.0,0.52992985]
[1633048157869,0.05947828,43891.0,43890.0,0.48092985]
[1633048158067,0.01047828,43891.0,43890.0,0.72757897]
[1633048158268,0.01047828,43891.0,43890.0,0.54292985]
[1633048159267,0.01047828,43891.0,43890.0,0.48092985]
[1633048159672,0.0026,43891.0,43890.0,0.49884296]
[1633048160068,0.0026,43891.0,43890.0,0.45584296]
[1633048160673,0.0026,43891.0,43890.0,0.63608321]
[1633048160872,0.0026,43891.0,43890.0,0.45584296]
[1633048161071,0.0026,43891.0,43890.0,0.40454611]
[1633048161276,0.0026,43891.0,43890.0,0.329633]
[1633048161472,0.01047832,43891.0,43890.0,0.329633]
[1633048161672,0.01047832,43891.0,43890.0,0.229633]
[1633048162071,0.01047832,43891.0,43890.0,0.286633]
[1633048162276,0.01047832,43891.0,43890.0,0.22069369]
[1633048163276,0.01047832,43891.0,43890.0,0.56688645]
[1633048163476,0.01047832,43891.0,43890.0,0.61811637]
[1633048163674,0.01047832,43891.0,43890.0,0.71811637]
[1633048163874,0.01047832,43891.0,43890.0,0.59491637]
[1633048164075,0.01047832,43891.0,43890.0,0.32592361]
[1633048164278,0.01047832,43891.0,43890.0,0.37592361]
[1633048164473,0.01047832,43891.0,43890.0,0.69912361]
[1633048164672,0.01047832,43891.0,43890.0,0.47592361]
[1633048165073,0.0026,43891.0,43890.0,0.49383672]
[1633048165277,0.0026,43891.0,43890.0,0.3926068]
[1633048165472,0.0026,43891.0,43890.0,0.3316068]
[1633048165877,0.0026,43891.0,43890.0,0.2316068]
[1633048166077,0.0026,43891.0,43890.0,0.2976068]
[1633048166875,0.01047837,43891.0,43890.0,0.27969369]
[1633048167276,0.01047837,43891.0,43890.0,0.21369369]
[1633048168077,0.01047837,43891.0,43890.0,0.27869369]
[1633048169278,0.01047837,43891.0,43890.0,0.21369369]
[1633048170081,0.01047837,43891.0,43890.0,0.27969369]
[1633048170679,0.0026,43891.0,43890.0,0.2976068]
[1633048171280,0.0026,43891.0,43890.0,0.2316068]
[1633048171492,0.1375428,43891.0,43890.0,0.01791311]
[1633048171682,0.13807267,43891.0,43890.0,0.01791311]
[1633048171883,0.31789816,43891.0,43890.0,0.01791311]
[1633048172082,0.13807267,43891.0,43890.0,0.07191311]
[1633048172282,0.1375428,43891.0,43890.0,0.07191311]
[1633048172480,0.14542122,43891.0,43890.0,0.054]
[1633048172685,0.01175122,43891.0,43890.0,0.054]
[1633048173483,0.01175122,43891.0,43887.0,0.2312896]
[1633048173682,0.002,43888.0,43887.0,0.2312896]
[1633048173883,0.002,43888.0,43887.0,0.4608146]
[1633048174082,0.002,43888.0,43887.0,0.280525]
[1633048175685,0.002,43888.0,43887.0,0.229525]
[1633048176086,0.002,43888.0,43887.0,0.29544876]
[1633048176484,0.002,43888.0,43887.0,0.06592376]
[1633048177086,0.00329915,43888.0,43887.0,0.06592376]
[1633048177489,0.00329915,43888.0,43886.0,0.00044]
[1633048177490,0.048,43887.0,43886.0,0.00044]
[1633048177689,0.048,43887.0,43886.0,8.44e-06]
[1633048177690,0.38397162,43887.0,43886.0,8.44e-06]
[1633048177900,0.84278812,43887.0,43886.0,8.44e-06]
[1633048178089,0.55080012,43887.0,43886.0,0.03400844]
[1633048178287,0.25987455,43887.0,43886.0,0.03400844]
[1633048178687,0.66165571,43887.0,43886.0,0.03400844]
[1633048178887,0.7607203,43887.0,43886.0,0.03400844]
[1633048179488,0.39926152,43887.0,43886.0,8.44e-06]
[1633048180088,0.44426152,43887.0,43886.0,0.02800844]
[1633048180492,0.53726565,43887.0,43886.0,0.02800844]
[1633048180888,0.53673578,43887.0,43886.0,0.02800844]
[1633048181090,0.44373165,43887.0,43886.0,0.02800844]
[1633048181488,0.39873165,43887.0,43886.0,8.44e-06]
[1633048181688,0.38190315,43887.0,43886.0,0.00897386]
[1633048181890,0.04924818,43887.0,43886.0,0.00897386]
[1633048182094,0.095,43887.0,43886.0,0.13528763]
[1633048182494,0.095,43887.0,43886.0,0.33908308]
[1633048183092,0.095,43887.0,43886.0,0.38908308]
[1633048183289,0.095,43887.0,43886.0,0.61860808]
[1633048183491,0.06482855,43887.0,43886.0,0.48332889]
[1633048183889,0.06682855,43887.0,43886.0,0.48332889]
[1633048184091,0.06682855,43887.0,43886.0,0.48432889]
[1633048186092,0.06682855,43887.0,43886.0,0.47932889]
[1633048187551,0.06682855,43887.0,43886.0,0.43332889]
[1633048188093,0.06682855,43887.0,43886.0,0.47732889]
[1633048188893,0.05,43887.0,43886.0,0.48629431]
[1633048189495,0.05,43887.0,43886.0,0.44229431]
[1633048190095,0.05,43887.0,43886.0,0.48929431]
[1633048191498,0.05,43887.0,43886.0,0.44229431]
[1633048192099,0.05,43887.0,43886.0,0.48729431]
[1633048193562,0.05,43887.0,43886.0,0.44229431]
[1633048194104,0.05,43887.0,43886.0,0.5932079]
[1633048195503,0.05,43887.0,43886.0,0.5432079]
[1633048196107,0.05,43887.0,43886.0,0.5952079]
[1633048197307,0.05,43887.0,43886.0,0.5932079]
[1633048198107,0.05,43887.0,43886.0,0.54429431]
[1633048200110,0.05,43887.0,43886.0,0.54129431]
[1633048200912,0.05,43887.0,43886.0,0.49129431]
[1633048201511,0.05,43887.0,43886.0,0.44229431]
[1633048202114,0.05,43887.0,43886.0,0.48929431]
[1633048202313,0.05,43887.0,43886.0,0.47335448]
[1633048202712,0.05,43887.0,43886.0,0.57335448]
[1633048203312,0.05,43887.0,43886.0,0.52635448]
[1633048203713,0.05,43887.0,43886.0,0.42635448]
[1633048204115,0.05,43887.0,43886.0,0.48435448]
[1633048204720,0.0006,43891.0,43887.0,0.798]
[1633048204921,0.0006,43891.0,43890.0,0.40127477]
[1633048205118,0.0006,43891.0,43890.0,0.43446034]
[1633048205321,0.0026,43891.0,43890.0,0.48446034]
[1633048205919,0.0026,43891.0,43890.0,0.70766034]
[1633048206118,0.0026,43891.0,43890.0,0.86266034]
[1633048206318,0.0026,43891.0,43890.0,0.65899977]
[1633048206518,0.0026,43891.0,43890.0,0.43079977]
[1633048206716,0.0026,43891.0,43890.0,0.61059487]
[1633048206921,0.0004,43892.0,43891.0,0.95]
[1633048207119,0.001,43904.0,43896.0,0.9004]
[1633048207321,0.001,43904.0,43896.0,1.13119391]
[1633048207520,0.003,43897.0,43896.0,1.23119391]
[1633048207719,0.003,43897.0,43896.0,0.33119391]
[1633048207920,0.003,43897.0,43896.0,0.52155822]
[1633048208123,0.00160282,43897.0,43896.0,1.85600742]
[1633048208320,0.00160282,43897.0,43896.0,1.66564311]
[1633048208517,0.00160282,43897.0,43896.0,1.71564311]
[1633048209220,0.00160282,43897.0,43896.0,1.74244311]
[1633048209417,0.00160282,43897.0,43896.0,1.68144311]
[1633048209818,0.00160282,43897.0,43896.0,0.329925]
[1633048210226,0.00160282,43897.0,43896.0,0.385925]
[1633048210621,0.00160282,43897.0,43896.0,1.4361742]
[1633048210818,0.00160282,43897.0,43896.0,1.3361742]
[1633048211019,0.00160282,43897.0,43896.0,0.285925]
[1633048211223,0.00287235,43897.0,43896.0,0.0564]
[1633048211420,0.07318288,43897.0,43896.0,0.0564]
[1633048211619,0.07318288,43897.0,43896.0,0.0004]
[1633048211620,0.21645088,43897.0,43896.0,0.0004]
[1633048211822,0.07191335,43897.0,43896.0,0.0004]
[1633048212020,0.00160282,43897.0,43896.0,0.24874144]
[1633048212225,0.00160282,43897.0,43896.0,0.53323032]
[1633048212420,0.00160282,43897.0,43896.0,0.81275532]
[1633048212819,0.00160282,43897.0,43896.0,0.56441388]
[1633048213020,0.00160282,43897.0,43896.0,0.51441388]
[1633048213221,0.00160282,43897.0,43896.0,0.272925]
[1633048213424,0.18125962,43897.0,43896.0,0.0004]
[1633048213624,0.18178949,43897.0,43896.0,0.0004]
[1633048214223,0.14540069,43897.0,43896.0,0.26044984]
[1633048214426,0.00172987,43898.0,43896.0,0.0404]
[1633048215021,0.0012,43898.0,43896.0,0.0404]
[1633048215424,0.0012,43898.0,43896.0,0.0004]
[1633048216228,0.0012,43898.0,43896.0,0.0524]
[1633048217427,0.0012,43898.0,43896.0,0.0004]
[1633048218092,0.0012,43898.0,43896.0,0.0544]
[1633048218293,0.18451324,43898.0,43896.0,0.0544]
[1633048218490,0.18504311,43898.0,43896.0,0.0544]
[1633048218688,0.00172987,43898.0,43896.0,0.0544]
[1633048218887,0.0012,43898.0,43896.0,0.0544]
[1633048219490,0.0012,43898.0,43896.0,0.0779]
[1633048219892,0.00172987,43898.0,43896.0,0.0779]
[1633048220089,0.51741567,43898.0,43896.0,0.1169]
[1633048220292,0.143268,43897.0,43896.0,0.1169]
[1633048220693,0.0012,43898.0,43897.0,2.73856196]
[1633048220897,0.0004,43898.0,43897.0,3.08230325]
[1633048221093,0.0004,43898.0,43897.0,3.18230325]
[1633048221291,0.0004,43898.0,43897.0,3.43230325]
[1633048221491,0.0004,43898.0,43897.0,3.66972363]
[1633048221693,0.0004,43898.0,43897.0,4.26064206]
[1633048222295,0.0004,43898.0,43897.0,4.32364206]
[1633048222695,0.0004,43898.0,43897.0,4.42364206]
[1633048223297,0.0001,43899.0,43898.0,1.029525]
[1633048223495,0.0014,43902.0,43901.0,0.00044]
[1633048223695,0.0014,43902.0,43901.0,0.229965]
[1633048224094,0.0014,43902.0,43901.0,0.329965]
[1633048224296,0.0014,43902.0,43901.0,0.389965]
[1633048224897,0.0014,43902.0,43901.0,0.56820022]
[1633048225095,0.0014,43902.0,43901.0,0.389965]
[1633048225496,0.0014,43902.0,43901.0,0.5683477]
[1633048225694,0.0014,43902.0,43901.0,0.389965]
[1633048225896,0.0014,43902.0,43901.0,0.329965]
[1633048226097,0.0014,43902.0,43901.0,0.33887721]
[1633048226499,0.00291735,43902.0,43901.0,0.39687721]
[1633048226896,0.01379258,43902.0,43901.0,0.39687721]
[1633048227097,0.01379258,43902.0,43901.0,0.387965]
[1633048227298,0.03066591,43902.0,43901.0,0.49578419]
[1633048228499,0.03066591,43902.0,43901.0,0.49678419]
[1633048228702,0.03066591,43902.0,43901.0,0.90289774]
[1633048228900,0.03066591,43902.0,43901.0,0.72119941]
[1633048229101,0.03066591,43902.0,43901.0,0.49799941]
[1633048229503,0.03066591,43902.0,43901.0,0.49678419]
[1633048229702,0.03066591,43902.0,43901.0,0.43778419]
[1633048230703,0.03066591,43902.0,43901.0,0.49678419]
[1633048230903,0.03066591,43902.0,43901.0,0.388965]
[1633048231703,0.01385516,43902.0,43901.0,0.39787721]
[1633048232103,0.01385516,43902.0,43901.0,0.33887721]
[1633048232304,0.01385516,43902.0,43901.0,0.23887721]
[1633048232504,0.01385516,43902.0,43901.0,0.39887721]
[1633048232707,0.01385516,43902.0,43901.0,0.467465]
[1633048232903,0.03072853,43902.0,43901.0,0.467465]
[1633048233705,0.03072853,43902.0,43901.0,0.407465]
[1633048234509,0.01753595,43902.0,43901.0,0.407465]
[1633048234808,0.00271735,43905.0,43904.0,0.2057567]
[1633048234809,0.0006,43905.0,43904.0,0.2057567]
[1633048235007,0.0006,43905.0,43904.0,0.4352817]
[1633048236305,0.0006,43905.0,43904.0,0.5922817]
[1633048236505,0.0026,43905.0,43904.0,0.5922817]
[1633048237104,0.0026,43905.0,43904.0,0.60961996]
[1633048237707,0.0026,43905.0,43904.0,0.55261996]
[1633048238307,0.01104561,43905.0,43904.0,0.61061996]
[1633048239706,0.01104561,43905.0,43904.0,0.55261996]
[1633048240311,0.01104561,43905.0,43904.0,0.45261996]
[1633048240512,0.01104561,43905.0,43904.0,0.50661996]
[1633048242316,0.01104561,43905.0,43904.0,0.38670254]
[1633048242513,0.01104561,43905.0,43904.0,0.43870254]
[1633048242714,0.0026,43905.0,43904.0,0.43870254]
[1633048243020,0.0026,43905.0,43904.0,0.29886326]
[1633048243021,0.00387995,43905.0,43904.0,0.29886326]
[1633048243717,0.01232561,43905.0,43904.0,0.229525]
[1633048244122,0.01104566,43905.0,43904.0,0.52962997]
[1633048244317,0.02904566,43905.0,43904.0,0.40984921]
[1633048244515,0.02904566,43905.0,43904.0,0.390525]
[1633048245116,0.01904566,43905.0,43904.0,0.390525]
[1633048245320,0.02104566,43905.0,43904.0,0.390525]
[1633048245916,0.00304566,43905.0,43904.0,0.329525]
[1633048246517,0.00304566,43905.0,43904.0,0.288525]
[1633048247320,0.00304566,43905.0,43904.0,0.388525]
[1633048247719,0.00304566,43905.0,43904.0,0.229525]
[1633048247918,0.00304566,43905.0,43904.0,0.329525]
[1633048248518,0.00304566,43905.0,43904.0,0.388525]
[1633048248724,0.002,43905.0,43904.0,0.40956326]
[1633048249119,0.002,43905.0,43904.0,0.388525]
[1633048249319,0.00674571,43905.0,43904.0,0.388525]
[1633048249721,0.00674571,43905.0,43904.0,0.329525]
[1633048250518,0.00674571,43905.0,43904.0,0.387525]
[1633048251719,0.00674571,43905.0,43904.0,0.329525]
[1633048252522,0.00674571,43905.0,43904.0,0.387525]
[1633048253925,0.00674571,43905.0,43904.0,0.329525]
[1633048254130,0.002,43905.0,43904.0,0.35056326]
[1633048254528,0.002,43905.0,43904.0,0.30756326]
[1633048254726,0.00674576,43905.0,43904.0,0.286525]
[1633048255529,0.00674576,43905.0,43904.0,0.057]
[1633048255930,0.00674576,43905.0,43903.0,0.22779]
[1633048256128,0.002,43904.0,43903.0,0.22779]
[1633048256328,0.0043184,43904.0,43903.0,1.507315]
[1633048256598,0.0043184,43904.0,43903.0,1.85394528]
[1633048256731,0.001,43908.0,43903.0,1.85394528]
[1633048256732,0.0412,43909.0,43908.0,1.05044]
[1633048256930,0.0012,43913.0,43911.0,0.09704043]
[1633048257127,0.01717069,43915.0,43913.0,0.229525]
[1633048257327,0.01717069,43915.0,43914.0,0.52399724]
[1633048257528,0.01917069,43915.0,43914.0,0.52399724]
[1633048257729,0.00143211,43917.0,43915.0,0.829965]
[1633048257931,0.00143211,43917.0,43916.0,0.53651074]
[1633048258130,0.0006,43918.0,43917.0,0.5]
[1633048258328,0.0006,43918.0,43917.0,0.4227444]